[Event "Late-Titled-Tuesday-Blitz-April-02-2024"]
[Site "Chess.com"]
[Date "2024.04.02"]
[Round "2"]
[White "GaiozNigalidze"]
[Black "Inepton_Fermion"]
[Result "1-0"]
[WhiteElo "2720"]
[BlackElo "2468"]
[TimeControl "180+1"]
[EndTime "14:16:15 PDT"]
[Termination "GaiozNigalidze won by checkmate"]

1. d4 {[%clk 0:03:00.9]} 1... d5 {[%clk 0:02:57.9]} 2. c4 {[%clk 0:03:01.3]}
2... dxc4 {[%clk 0:02:57.7]} 3. e4 {[%clk 0:02:58.7]} 3... Nc6 {[%clk
0:02:48.3]} 4. Nf3 {[%clk 0:02:46.9]} 4... Bg4 {[%clk 0:02:39.1]} 5. Bxc4 {[%clk
0:02:46.1]} 5... e6 {[%clk 0:02:27.9]} 6. Be3 {[%clk 0:02:42.6]} 6... Bxf3
{[%clk 0:02:27.3]} 7. gxf3 {[%clk 0:02:43]} 7... Nf6 {[%clk 0:02:23.9]} 8. Nc3
{[%clk 0:02:42.5]} 8... a6 {[%clk 0:02:23.3]} 9. Rg1 {[%clk 0:02:36.1]} 9... b5
{[%clk 0:02:19.2]} 10. Be2 {[%clk 0:02:32.7]} 10... Na5 {[%clk 0:02:08.3]} 11.
Rc1 {[%clk 0:02:27.7]} 11... Rc8 {[%clk 0:01:37.3]} 12. a4 {[%clk 0:02:05.9]}
12... c6 {[%clk 0:01:33.3]} 13. axb5 {[%clk 0:01:55.2]} 13... axb5 {[%clk
0:01:15.1]} 14. Kf1 {[%clk 0:01:43.4]} 14... g6 {[%clk 0:00:52]} 15. Qc2 {[%clk
0:01:42.7]} 15... Nc4 {[%clk 0:00:31.6]} 16. Bxc4 {[%clk 0:01:38.8]} 16... bxc4
{[%clk 0:00:32.5]} 17. Qa4 {[%clk 0:01:39.2]} 17... Bg7 {[%clk 0:00:28.4]} 18.
Qxc4 {[%clk 0:01:38.9]} 18... O-O {[%clk 0:00:28]} 19. Kg2 {[%clk 0:01:29]}
19... Nh5 {[%clk 0:00:24.9]} 20. Ne2 {[%clk 0:01:28.6]} 20... Kh8 {[%clk
0:00:17.8]} 21. Qc5 {[%clk 0:01:21.5]} 21... Qh4 {[%clk 0:00:17.5]} 22. Bg5
{[%clk 0:01:12.3]} 22... Nf4+ {[%clk 0:00:17.4]} 23. Nxf4 {[%clk 0:01:07.9]}
23... Bxd4 {[%clk 0:00:16.8]} 24. Qxd4+ {[%clk 0:01:04.3]} 24... e5 {[%clk
0:00:17.3]} 25. Bxh4 {[%clk 0:00:54.7]} 25... exd4 {[%clk 0:00:17.3]} 26. Bf6+
{[%clk 0:00:54.8]} 26... Kg8 {[%clk 0:00:17.5]} 27. Bxd4 {[%clk 0:00:52.9]}
27... f5 {[%clk 0:00:17.2]} 28. e5 {[%clk 0:00:51.7]} 28... g5 {[%clk
0:00:16.9]} 29. Ne6 {[%clk 0:00:50.6]} 29... Rfe8 {[%clk 0:00:16.6]} 30. Nxg5
{[%clk 0:00:51]} 30... Kg7 {[%clk 0:00:16.6]} 31. f4 {[%clk 0:00:49.4]} 31...
Kg6 {[%clk 0:00:17.5]} 32. Nf3 {[%clk 0:00:48.7]} 32... Kh5 {[%clk 0:00:18.4]}
33. Kh3 {[%clk 0:00:48.2]} 33... c5 {[%clk 0:00:18.2]} 34. Nh4 {[%clk
0:00:45.2]} 34... cxd4 {[%clk 0:00:17.4]} 35. Rg5+ {[%clk 0:00:44.9]} 35... Kh6
{[%clk 0:00:18.3]} 36. Nxf5# {[%clk 0:00:45.6]} 1-0

[Event "Late-Titled-Tuesday-Blitz-April-02-2024"]
[Site "Chess.com"]
[Date "2024.04.02"]
[Round "2"]
[White "Heliosis11"]
[Black "ChessBrainiacOnTwitch"]
[Result "0-1"]
[WhiteElo "2392"]
[BlackElo "2844"]
[TimeControl "180+1"]
[EndTime "14:16:16 PDT"]
[Termination "ChessBrainiacOnTwitch won on time"]

1. e4 {[%clk 0:03:00.9]} 1... c5 {[%clk 0:02:59.9]} 2. Nf3 {[%clk 0:03:01]} 2...
d6 {[%clk 0:02:58.4]} 3. Bb5+ {[%clk 0:03:00.6]} 3... Nc6 {[%clk 0:02:55.2]} 4.
O-O {[%clk 0:03:00.2]} 4... Bd7 {[%clk 0:02:54.5]} 5. Re1 {[%clk 0:02:59.6]}
5... Nf6 {[%clk 0:02:55.1]} 6. c3 {[%clk 0:02:58.5]} 6... a6 {[%clk 0:02:54.4]}
7. Bf1 {[%clk 0:02:58.4]} 7... e6 {[%clk 0:02:52.4]} 8. d4 {[%clk 0:02:58.3]}
8... Be7 {[%clk 0:02:49.4]} 9. h3 {[%clk 0:02:53.1]} 9... O-O {[%clk 0:02:46.4]}
10. Bg5 {[%clk 0:02:38.1]} 10... h6 {[%clk 0:02:44.6]} 11. Bh4 {[%clk
0:02:30.6]} 11... cxd4 {[%clk 0:02:43.3]} 12. cxd4 {[%clk 0:02:30.5]} 12... Rc8
{[%clk 0:02:43.5]} 13. Nc3 {[%clk 0:02:30.3]} 13... e5 {[%clk 0:02:13.7]} 14.
dxe5 {[%clk 0:02:24.8]} 14... dxe5 {[%clk 0:02:14.1]} 15. Bxf6 {[%clk 0:02:25]}
15... Bxf6 {[%clk 0:02:14.2]} 16. Nd5 {[%clk 0:02:25.7]} 16... Be6 {[%clk
0:02:12.7]} 17. Rc1 {[%clk 0:02:23]} 17... Bg5 {[%clk 0:02:09.4]} 18. Nxg5
{[%clk 0:02:17.6]} 18... Qxg5 {[%clk 0:02:10.3]} 19. Rc3 {[%clk 0:02:05.5]}
19... Nd4 {[%clk 0:02:00.5]} 20. Rg3 {[%clk 0:02:01.6]} 20... Qh4 {[%clk
0:01:58.5]} 21. Ne3 {[%clk 0:01:41.3]} 21... Rfd8 {[%clk 0:01:54.9]} 22. Qb1
{[%clk 0:01:37.1]} 22... b5 {[%clk 0:01:42.2]} 23. Ng4 {[%clk 0:01:35.1]} 23...
Qg5 {[%clk 0:01:35.9]} 24. b3 {[%clk 0:01:14.8]} 24... h5 {[%clk 0:01:29]} 25.
Ne3 {[%clk 0:01:12.2]} 25... Qf4 {[%clk 0:01:12.1]} 26. Nf5 {[%clk 0:01:09.3]}
26... Bxf5 {[%clk 0:00:56.1]} 27. exf5 {[%clk 0:01:08.9]} 27... Rc2 {[%clk
0:00:51.7]} 28. Kh1 {[%clk 0:00:05.5]} 28... Rxf2 {[%clk 0:00:47.8]} 29. Rd3
{[%clk 0:00:02.6]} 29... e4 {[%clk 0:00:43.5]} 0-1

[Event "Late-Titled-Tuesday-Blitz-April-02-2024"]
[Site "Chess.com"]
[Date "2024.04.02"]
[Round "2"]
[White "Bykov_Egor"]
[Black "LuisFSiles"]
[Result "1-0"]
[WhiteElo "2611"]
[BlackElo "2345"]
[TimeControl "180+1"]
[EndTime "14:16:17 PDT"]
[Termination "Bykov_Egor won by checkmate"]

1. c4 {[%clk 0:02:52.9]} 1... Nf6 {[%clk 0:02:59.7]} 2. Nc3 {[%clk 0:02:52.5]}
2... d5 {[%clk 0:02:57.9]} 3. d4 {[%clk 0:02:51.3]} 3... g6 {[%clk 0:02:57.7]}
4. cxd5 {[%clk 0:02:45.4]} 4... Nxd5 {[%clk 0:02:58.6]} 5. e4 {[%clk 0:02:45.6]}
5... Nxc3 {[%clk 0:02:58.5]} 6. bxc3 {[%clk 0:02:46.5]} 6... Bg7 {[%clk
0:02:58.8]} 7. Qa4+ {[%clk 0:02:47]} 7... c6 {[%clk 0:02:57.3]} 8. Nf3 {[%clk
0:02:41]} 8... O-O {[%clk 0:02:57]} 9. Be3 {[%clk 0:02:36.5]} 9... b5 {[%clk
0:02:55.3]} 10. Qa3 {[%clk 0:02:35.2]} 10... a5 {[%clk 0:02:51.4]} 11. Be2
{[%clk 0:02:30.2]} 11... Na6 {[%clk 0:02:51.6]} 12. O-O {[%clk 0:02:27]} 12...
c5 {[%clk 0:02:49]} 13. Rac1 {[%clk 0:02:20.9]} 13... b4 {[%clk 0:02:47.3]} 14.
Qb3 {[%clk 0:02:14.7]} 14... bxc3 {[%clk 0:02:36.5]} 15. Rfd1 {[%clk 0:01:57.5]}
15... cxd4 {[%clk 0:02:30]} 16. Bxd4 {[%clk 0:01:56.8]} 16... Be6 {[%clk
0:02:16.3]} 17. Qxc3 {[%clk 0:01:51.2]} 17... Bxd4 {[%clk 0:02:05]} 18. Nxd4
{[%clk 0:01:48]} 18... Qc8 {[%clk 0:01:53.2]} 19. Nc6 {[%clk 0:01:11.1]} 19...
Re8 {[%clk 0:01:41.7]} 20. Qxa5 {[%clk 0:00:58.9]} 20... Nc7 {[%clk 0:01:34.7]}
21. Na7 {[%clk 0:00:57.3]} 21... Qb8 {[%clk 0:01:21.4]} 22. Rxc7 {[%clk
0:00:56.7]} 22... Qb2 {[%clk 0:01:12.2]} 23. Qd2 {[%clk 0:00:52.5]} 23... Qb6
{[%clk 0:01:10.8]} 24. Nb5 {[%clk 0:00:45.8]} 24... Ra5 {[%clk 0:01:05.8]} 25.
Rc6 {[%clk 0:00:38.2]} 25... Qxc6 {[%clk 0:00:57.1]} 26. Qxa5 {[%clk 0:00:38.2]}
26... Ra8 {[%clk 0:00:52.2]} 27. Qc3 {[%clk 0:00:37.6]} 27... Qxe4 {[%clk
0:00:44.6]} 28. Bf3 {[%clk 0:00:34]} 28... Qa4 {[%clk 0:00:45.1]} 29. Nc7 {[%clk
0:00:25.7]} 29... Rc8 {[%clk 0:00:44.8]} 30. a3 {[%clk 0:00:15.7]} 30... Qa7
{[%clk 0:00:44]} 31. Nxe6 {[%clk 0:00:12.2]} 31... Rxc3 {[%clk 0:00:42.4]} 32.
Rd8# {[%clk 0:00:11.3]} 1-0

[Event "Late-Titled-Tuesday-Blitz-April-02-2024"]
[Site "Chess.com"]
[Date "2024.04.02"]
[Round "2"]
[White "Angry_Twin"]
[Black "Bilan_Danila"]
[Result "1-0"]
[WhiteElo "2929"]
[BlackElo "2592"]
[TimeControl "180+1"]
[EndTime "14:16:20 PDT"]
[Termination "Angry_Twin won on time"]

1. e4 {[%clk 0:02:31.7]} 1... c6 {[%clk 0:02:58.9]} 2. Nf3 {[%clk 0:02:31.5]}
2... d5 {[%clk 0:02:59]} 3. d3 {[%clk 0:02:32.3]} 3... Bg4 {[%clk 0:02:57.5]} 4.
h3 {[%clk 0:02:32.2]} 4... Bxf3 {[%clk 0:02:57.4]} 5. Qxf3 {[%clk 0:02:33.1]}
5... e6 {[%clk 0:02:58]} 6. g3 {[%clk 0:02:32.7]} 6... Nf6 {[%clk 0:02:57.7]} 7.
Bg2 {[%clk 0:02:32.9]} 7... Nbd7 {[%clk 0:02:53.1]} 8. O-O {[%clk 0:02:32.6]}
8... Bc5 {[%clk 0:02:51.2]} 9. Qe2 {[%clk 0:02:32.1]} 9... dxe4 {[%clk
0:02:49.8]} 10. dxe4 {[%clk 0:02:31.8]} 10... e5 {[%clk 0:02:50]} 11. Nd2 {[%clk
0:02:28.2]} 11... O-O {[%clk 0:02:46.4]} 12. Nb3 {[%clk 0:02:28.4]} 12... Bb6
{[%clk 0:02:43.1]} 13. Kh2 {[%clk 0:02:26.3]} 13... Qc7 {[%clk 0:02:32.8]} 14.
a4 {[%clk 0:02:23.1]} 14... a5 {[%clk 0:02:28.3]} 15. Nd2 {[%clk 0:02:13.2]}
15... Nc5 {[%clk 0:02:09.6]} 16. Nc4 {[%clk 0:02:12.3]} 16... Ne6 {[%clk
0:02:00.1]} 17. c3 {[%clk 0:02:12.3]} 17... Bc5 {[%clk 0:01:45.2]} 18. f4 {[%clk
0:02:06.8]} 18... exf4 {[%clk 0:01:21.2]} 19. gxf4 {[%clk 0:02:00.4]} 19... b5
{[%clk 0:01:15.3]} 20. axb5 {[%clk 0:01:57.4]} 20... cxb5 {[%clk 0:01:14.9]} 21.
Ne5 {[%clk 0:01:38.9]} 21... Bd6 {[%clk 0:01:02.9]} 22. Nd3 {[%clk 0:01:36.1]}
22... Nd7 {[%clk 0:00:39.9]} 23. e5 {[%clk 0:01:35.5]} 23... Be7 {[%clk
0:00:36.8]} 24. Bxa8 {[%clk 0:01:35]} 24... Rxa8 {[%clk 0:00:37.7]} 25. f5
{[%clk 0:01:35.5]} 25... Nec5 {[%clk 0:00:34]} 26. Nxc5 {[%clk 0:01:35.8]} 26...
Qxc5 {[%clk 0:00:19.3]} 27. Bf4 {[%clk 0:01:35.1]} 27... a4 {[%clk 0:00:18.9]}
28. Rad1 {[%clk 0:01:19.5]} 28... Nb6 {[%clk 0:00:18.7]} 29. f6 {[%clk
0:01:18.8]} 29... Bf8 {[%clk 0:00:06]} 30. fxg7 {[%clk 0:01:17]} 30... Be7
{[%clk 0:00:06.3]} 31. Qf3 {[%clk 0:01:11.9]} 31... Re8 {[%clk 0:00:03]} 32. Be3
{[%clk 0:01:06.3]} 32... Qxe5+ {[%clk 0:00:01.1]} 33. Kh1 {[%clk 0:01:06.8]}
33... Qe6 {[%clk 0:00:01.4]} 34. Bxb6 {[%clk 0:01:06.5]} 1-0

[Event "Late-Titled-Tuesday-Blitz-April-02-2024"]
[Site "Chess.com"]
[Date "2024.04.02"]
[Round "2"]
[White "best926"]
[Black "PhileKhoob"]
[Result "1-0"]
[WhiteElo "2514"]
[BlackElo "2274"]
[TimeControl "180+1"]
[EndTime "14:16:29 PDT"]
[Termination "best926 won on time"]

1. e4 {[%clk 0:03:00.9]} 1... c6 {[%clk 0:03:00]} 2. d4 {[%clk 0:02:59.1]} 2...
d5 {[%clk 0:03:00.6]} 3. e5 {[%clk 0:03:00]} 3... Bf5 {[%clk 0:03:00.4]} 4. Bd3
{[%clk 0:03:00.5]} 4... Bxd3 {[%clk 0:02:59.8]} 5. Qxd3 {[%clk 0:03:01.4]} 5...
e6 {[%clk 0:02:57.4]} 6. Nf3 {[%clk 0:02:57.8]} 6... Qa5+ {[%clk 0:02:57.8]} 7.
c3 {[%clk 0:02:57.8]} 7... Qa6 {[%clk 0:02:56.7]} 8. Qxa6 {[%clk 0:02:56.6]}
8... Nxa6 {[%clk 0:02:57.6]} 9. Be3 {[%clk 0:02:47.3]} 9... c5 {[%clk
0:02:55.3]} 10. dxc5 {[%clk 0:02:48.2]} 10... Bxc5 {[%clk 0:02:47.9]} 11. Ke2
{[%clk 0:02:45.7]} 11... Ne7 {[%clk 0:02:47.5]} 12. Nbd2 {[%clk 0:02:43.5]}
12... Nc6 {[%clk 0:02:45.8]} 13. Nb3 {[%clk 0:02:32.7]} 13... b6 {[%clk
0:02:44.2]} 14. Rhd1 {[%clk 0:02:28.9]} 14... Ke7 {[%clk 0:02:41.4]} 15. a4
{[%clk 0:02:25.6]} 15... Bxe3 {[%clk 0:02:36.8]} 16. Kxe3 {[%clk 0:02:26.5]}
16... Nc5 {[%clk 0:02:36.8]} 17. Nbd4 {[%clk 0:02:16.8]} 17... Rhc8 {[%clk
0:02:27]} 18. Nxc6+ {[%clk 0:02:16.4]} 18... Rxc6 {[%clk 0:02:27.9]} 19. Nd4
{[%clk 0:02:17.2]} 19... Rcc8 {[%clk 0:02:26.7]} 20. a5 {[%clk 0:02:06.9]} 20...
b5 {[%clk 0:02:21.4]} 21. Nxb5 {[%clk 0:01:57.1]} 21... Rab8 {[%clk 0:02:21.7]}
22. Nd6 {[%clk 0:01:57.7]} 22... Rc6 {[%clk 0:02:12.3]} 23. Ra2 {[%clk
0:01:28.6]} 23... f6 {[%clk 0:01:59]} 24. f4 {[%clk 0:01:28.5]} 24... Nd7 {[%clk
0:01:55.7]} 25. Kd4 {[%clk 0:01:28.2]} 25... fxe5+ {[%clk 0:01:17.1]} 26. fxe5
{[%clk 0:01:28.4]} 26... Nxe5 {[%clk 0:01:11.2]} 27. Kxe5 {[%clk 0:01:23]} 27...
Rxd6 {[%clk 0:01:10.3]} 28. Rd4 {[%clk 0:01:20.8]} 28... Rf8 {[%clk 0:01:04.3]}
29. g4 {[%clk 0:01:21.2]} 29... Rf2 {[%clk 0:00:45.1]} 30. Rb4 {[%clk
0:01:21.7]} 30... Re2+ {[%clk 0:00:39]} 31. Kd4 {[%clk 0:01:21.2]} 31... Re4+
{[%clk 0:00:33]} 32. Kc5 {[%clk 0:01:21.6]} 32... Rd7 {[%clk 0:00:25.2]} 33.
Rxe4 {[%clk 0:01:16.6]} 33... dxe4 {[%clk 0:00:26.1]} 34. b4 {[%clk 0:01:17.5]}
34... Kf6 {[%clk 0:00:24.8]} 35. b5 {[%clk 0:01:16.3]} 35... Ke5 {[%clk
0:00:23.3]} 36. b6 {[%clk 0:01:16]} 36... axb6+ {[%clk 0:00:18.6]} 37. axb6
{[%clk 0:01:16.9]} 37... e3 {[%clk 0:00:17.4]} 38. c4 {[%clk 0:01:16.7]} 38...
Ke4 {[%clk 0:00:14.5]} 39. Kc6 {[%clk 0:01:15.1]} 39... Rd2 {[%clk 0:00:06.4]}
40. Rxd2 {[%clk 0:01:15.2]} 40... exd2 {[%clk 0:00:06.4]} 41. b7 {[%clk
0:01:16.1]} 41... d1=Q {[%clk 0:00:06.9]} 42. b8=Q {[%clk 0:01:17]} 42... Qxg4
{[%clk 0:00:05.4]} 43. c5 {[%clk 0:01:14.4]} 43... Qf5 {[%clk 0:00:03.1]} 44.
Qd6 {[%clk 0:01:11]} 1-0

[Event "Late-Titled-Tuesday-Blitz-April-02-2024"]
[Site "Chess.com"]
[Date "2024.04.02"]
[Round "2"]
[White "Masterisback04"]
[Black "fmcabralis"]
[Result "1-0"]
[WhiteElo "2029"]
[BlackElo "2401"]
[TimeControl "180+1"]
[EndTime "14:16:33 PDT"]
[Termination "Masterisback04 won by resignation"]

1. e4 {[%clk 0:02:37.5]} 1... c5 {[%clk 0:02:59.8]} 2. d4 {[%clk 0:02:34.7]}
2... cxd4 {[%clk 0:02:59.1]} 3. c3 {[%clk 0:02:35.1]} 3... e5 {[%clk 0:02:51.5]}
4. cxd4 {[%clk 0:02:34.2]} 4... exd4 {[%clk 0:02:49.4]} 5. Nf3 {[%clk
0:02:35.1]} 5... Nc6 {[%clk 0:02:49.3]} 6. Bc4 {[%clk 0:02:35.1]} 6... Nf6
{[%clk 0:02:49.4]} 7. Ng5 {[%clk 0:02:32.5]} 7... d5 {[%clk 0:02:49.8]} 8. exd5
{[%clk 0:02:32.6]} 8... Na5 {[%clk 0:02:48]} 9. O-O {[%clk 0:02:13.6]} 9... Nxc4
{[%clk 0:02:29.4]} 10. Qa4+ {[%clk 0:02:13.5]} 10... Bd7 {[%clk 0:02:23.6]} 11.
Qxc4 {[%clk 0:02:13.7]} 11... Bd6 {[%clk 0:02:00.7]} 12. Re1+ {[%clk 0:02:11.2]}
12... Kf8 {[%clk 0:02:00.8]} 13. Qxd4 {[%clk 0:02:06.9]} 13... h6 {[%clk
0:01:59.3]} 14. Nf3 {[%clk 0:02:01.2]} 14... Qb6 {[%clk 0:01:37]} 15. Bf4 {[%clk
0:01:52.4]} 15... Bc5 {[%clk 0:01:23.8]} 16. Qd2 {[%clk 0:01:52.2]} 16... Rd8
{[%clk 0:01:04.9]} 17. Nc3 {[%clk 0:01:46.5]} 17... Kg8 {[%clk 0:00:38.7]} 18.
h3 {[%clk 0:01:41.2]} 18... Kh7 {[%clk 0:00:34.7]} 19. Ne5 {[%clk 0:01:09.1]}
19... Be8 {[%clk 0:00:29.8]} 20. Rad1 {[%clk 0:00:58.4]} 20... Bb4 {[%clk
0:00:29.4]} 21. Qc2+ {[%clk 0:00:57.3]} 21... g6 {[%clk 0:00:29.3]} 22. Nc4
{[%clk 0:00:55.8]} 22... Qa6 {[%clk 0:00:25.6]} 23. Qb3 {[%clk 0:00:55.4]} 23...
Bxc3 {[%clk 0:00:22.6]} 24. Qxc3 {[%clk 0:00:54.3]} 24... Rc8 {[%clk 0:00:21.2]}
25. d6 {[%clk 0:00:49.3]} 25... Qxc4 {[%clk 0:00:08.5]} 26. Qxf6 {[%clk
0:00:49]} 26... Bd7 {[%clk 0:00:08.7]} 27. Re7 {[%clk 0:00:44.5]} 27... Be6
{[%clk 0:00:09]} 28. Re1 {[%clk 0:00:34.4]} 28... Rhg8 {[%clk 0:00:07]} 29.
R1xe6 {[%clk 0:00:33]} 29... Rcf8 {[%clk 0:00:02.4]} 1-0

[Event "Late-Titled-Tuesday-Blitz-April-02-2024"]
[Site "Chess.com"]
[Date "2024.04.02"]
[Round "2"]
[White "DanielNaroditsky"]
[Black "xasid81"]
[Result "1-0"]
[WhiteElo "3151"]
[BlackElo "2622"]
[TimeControl "180+1"]
[EndTime "14:16:35 PDT"]
[Termination "DanielNaroditsky won by resignation"]

1. e4 {[%clk 0:02:59.7]} 1... c6 {[%clk 0:02:58.2]} 2. Nf3 {[%clk 0:02:58.6]}
2... d5 {[%clk 0:02:58.3]} 3. exd5 {[%clk 0:02:59.5]} 3... cxd5 {[%clk
0:02:58.6]} 4. d4 {[%clk 0:03:00.4]} 4... Nf6 {[%clk 0:02:56.6]} 5. Ne5 {[%clk
0:03:00.6]} 5... a6 {[%clk 0:02:55.5]} 6. Bd3 {[%clk 0:02:59.9]} 6... e6 {[%clk
0:02:52.3]} 7. c3 {[%clk 0:02:59]} 7... Be7 {[%clk 0:02:49.3]} 8. O-O {[%clk
0:02:59.9]} 8... O-O {[%clk 0:02:49.8]} 9. Bf4 {[%clk 0:03:00.1]} 9... Nc6
{[%clk 0:02:50]} 10. Nd2 {[%clk 0:02:59.8]} 10... Nxe5 {[%clk 0:02:50.2]} 11.
dxe5 {[%clk 0:03:00.7]} 11... Nd7 {[%clk 0:02:50]} 12. Qh5 {[%clk 0:02:59.9]}
12... g6 {[%clk 0:02:49.8]} 13. Qh6 {[%clk 0:03:00.2]} 13... f6 {[%clk
0:02:35.7]} 14. Bxg6 {[%clk 0:02:59.8]} 14... hxg6 {[%clk 0:02:36.6]} 15. Qxg6+
{[%clk 0:03:00.5]} 15... Kh8 {[%clk 0:02:37.2]} 16. Qh5+ {[%clk 0:03:00.1]}
16... Kg8 {[%clk 0:02:36.5]} 17. Bh6 {[%clk 0:02:53.7]} 17... Nxe5 {[%clk
0:02:31.4]} 18. f4 {[%clk 0:02:53.5]} 18... Qe8 {[%clk 0:02:30.9]} 19. Qxe8
{[%clk 0:02:49.8]} 19... Rxe8 {[%clk 0:02:31.8]} 20. fxe5 {[%clk 0:02:50.4]}
20... fxe5 {[%clk 0:02:31.1]} 21. Rf3 {[%clk 0:02:49.2]} 21... e4 {[%clk
0:02:27.3]} 22. Rg3+ {[%clk 0:02:49.4]} 22... Kh7 {[%clk 0:02:27.9]} 23. Be3
{[%clk 0:02:46.9]} 23... e5 {[%clk 0:02:26]} 24. Rf1 {[%clk 0:02:34.2]} 24...
Be6 {[%clk 0:02:21.9]} 25. Bg5 {[%clk 0:02:23.8]} 25... Bc5+ {[%clk 0:02:19.8]}
26. Be3 {[%clk 0:02:20.6]} 26... Be7 {[%clk 0:02:17.9]} 27. Bg5 {[%clk
0:02:20.6]} 27... Bc5+ {[%clk 0:02:17.9]} 28. Kh1 {[%clk 0:02:21.1]} 28... Rf8
{[%clk 0:02:11.6]} 29. Bf6 {[%clk 0:01:40.1]} 29... Rf7 {[%clk 0:01:54.8]} 30.
Bxe5 {[%clk 0:01:22.8]} 30... Rxf1+ {[%clk 0:01:53.9]} 31. Nxf1 {[%clk
0:01:23.7]} 31... Rf8 {[%clk 0:01:28.1]} 32. Rg7+ {[%clk 0:01:22.7]} 32... Kh6
{[%clk 0:01:28.2]} 33. Ng3 {[%clk 0:01:23.3]} 33... e3 {[%clk 0:00:56.8]} 34. h4
{[%clk 0:01:22.5]} 34... Bd6 {[%clk 0:00:30.3]} 35. Rg5 {[%clk 0:01:08.8]} 35...
Rf1+ {[%clk 0:00:20.6]} 36. Kh2 {[%clk 0:01:08.8]} 36... Be7 {[%clk 0:00:16.4]}
37. Bg7+ {[%clk 0:00:59.2]} 37... Kh7 {[%clk 0:00:16]} 38. Re5 {[%clk
0:00:59.3]} 38... Bd6 {[%clk 0:00:13.4]} 39. Rxe6 {[%clk 0:00:53.4]} 39... Bf4
{[%clk 0:00:09.9]} 40. Bd4 {[%clk 0:00:49.8]} 1-0

[Event "Late-Titled-Tuesday-Blitz-April-02-2024"]
[Site "Chess.com"]
[Date "2024.04.02"]
[Round "2"]
[White "Meri-Arabidze"]
[Black "Godzillator"]
[Result "1-0"]
[WhiteElo "2696"]
[BlackElo "2372"]
[TimeControl "180+1"]
[EndTime "14:16:36 PDT"]
[Termination "Meri-Arabidze won by resignation"]

1. d4 {[%clk 0:02:58.1]} 1... d5 {[%clk 0:02:59.7]} 2. Nf3 {[%clk 0:02:58.4]}
2... Nf6 {[%clk 0:02:59.3]} 3. c4 {[%clk 0:02:59.1]} 3... e6 {[%clk 0:02:59.1]}
4. g3 {[%clk 0:02:59.7]} 4... Be7 {[%clk 0:02:58.7]} 5. Bg2 {[%clk 0:03:00.3]}
5... O-O {[%clk 0:02:58.6]} 6. O-O {[%clk 0:03:01]} 6... c6 {[%clk 0:02:58.9]}
7. Qc2 {[%clk 0:03:01.3]} 7... Nbd7 {[%clk 0:02:55.4]} 8. b3 {[%clk 0:03:01.4]}
8... b6 {[%clk 0:02:55]} 9. Nc3 {[%clk 0:03:01.4]} 9... Bb7 {[%clk 0:02:55]} 10.
Rd1 {[%clk 0:02:59.4]} 10... Rc8 {[%clk 0:02:54.1]} 11. e4 {[%clk 0:02:59.6]}
11... dxe4 {[%clk 0:02:53.5]} 12. Nxe4 {[%clk 0:02:59.9]} 12... Nxe4 {[%clk
0:02:40.1]} 13. Qxe4 {[%clk 0:03:00.8]} 13... Nf6 {[%clk 0:02:39.4]} 14. Qe2
{[%clk 0:03:01.3]} 14... Qe8 {[%clk 0:02:37]} 15. Ne5 {[%clk 0:02:56.9]} 15...
Nd7 {[%clk 0:02:36.8]} 16. Bf4 {[%clk 0:02:47.2]} 16... Nxe5 {[%clk 0:02:34.7]}
17. Bxe5 {[%clk 0:02:48.1]} 17... Ba8 {[%clk 0:02:24.7]} 18. Qg4 {[%clk
0:02:44.8]} 18... g6 {[%clk 0:02:25]} 19. Re1 {[%clk 0:02:30.4]} 19... f5 {[%clk
0:02:13.4]} 20. Qe2 {[%clk 0:02:29.1]} 20... Bb4 {[%clk 0:02:07.7]} 21. Red1
{[%clk 0:02:26.7]} 21... Qf7 {[%clk 0:02:07.6]} 22. h4 {[%clk 0:02:12.5]} 22...
Rfe8 {[%clk 0:02:06.8]} 23. a3 {[%clk 0:02:11.3]} 23... Bf8 {[%clk 0:02:06.2]}
24. b4 {[%clk 0:02:11.8]} 24... c5 {[%clk 0:01:58]} 25. Bxa8 {[%clk 0:02:11.1]}
25... Rxa8 {[%clk 0:01:57.4]} 26. dxc5 {[%clk 0:02:12]} 26... bxc5 {[%clk
0:01:57.4]} 27. b5 {[%clk 0:02:12.9]} 27... Rad8 {[%clk 0:01:51.6]} 28. a4
{[%clk 0:02:12.4]} 28... Bg7 {[%clk 0:01:31.2]} 29. a5 {[%clk 0:02:09.7]} 29...
Bxe5 {[%clk 0:01:29.4]} 30. Qxe5 {[%clk 0:02:10.6]} 30... Qg7 {[%clk 0:01:25.8]}
31. Qxc5 {[%clk 0:02:04.6]} 31... Qb2 {[%clk 0:01:15.7]} 32. Qxa7 {[%clk
0:01:56.7]} 32... Rd2 {[%clk 0:01:15.1]} 33. Qe3 {[%clk 0:01:45.9]} 33... Red8
{[%clk 0:01:13.4]} 34. Qxe6+ {[%clk 0:01:44]} 34... Kh8 {[%clk 0:01:13.3]} 35.
Rdb1 {[%clk 0:01:22.6]} 35... Qd4 {[%clk 0:01:12.7]} 36. Qe3 {[%clk 0:01:16.7]}
36... Qxc4 {[%clk 0:01:06]} 37. Qe5+ {[%clk 0:00:57]} 37... Kg8 {[%clk
0:01:05.5]} 38. Re1 {[%clk 0:00:57.6]} 38... Qc2 {[%clk 0:00:20.3]} 39. Qe6+
{[%clk 0:00:57.1]} 39... Kg7 {[%clk 0:00:19.9]} 40. Qe7+ {[%clk 0:00:57.4]}
40... Kg8 {[%clk 0:00:18.5]} 41. Rac1 {[%clk 0:00:49.2]} 41... Qb2 {[%clk
0:00:16.9]} 42. Rc7 {[%clk 0:00:47.4]} 1-0